bitfinex-derivatives/quotes_BNBF0:USTF0_20241231
["timestamp","ask_amount","ask_price","bid_price","bid_amount"]
[1735673208058,0.26103411,705.16,704.16,0.28402635]
[1735673211860,1.06274161,705.15,704.16,0.28402635]
[1735673212064,0.26103411,705.14,704.16,0.28402635]
[1735673212262,1.06274161,705.15,704.16,0.28402635]
[1735673212558,0.26104343,705.14,704.16,0.28402635]
[1735673213166,1.06274161,705.13,704.16,0.28402635]
[1735673213465,0.26104343,705.12,704.16,0.28402635]
[1735673214266,0.26103637,705.11,704.16,0.28402635]
[1735673215065,0.26103648,705.1,704.16,0.28402635]
[1735673215266,0.26103648,705.09,704.16,0.28402635]
[1735673215563,0.26103648,705.08,704.16,0.28402635]
[1735673215869,0.26103648,705.07,704.16,0.28402635]
[1735673216070,1.06274161,705.1,704.16,0.28402635]
[1735673216367,0.261036,705.09,704.16,0.28402635]
[1735673216569,1.32377761,705.09,704.16,0.28402635]
[1735673216870,0.261036,705.08,704.16,0.28402635]
[1735673217872,1.06274161,705.07,704.16,0.28402635]
[1735673219071,1.06274161,705.09,704.16,0.28402635]
[1735673219272,0.26102478,705.08,704.16,0.28402635]
[1735673220379,1.06274161,705.08,704.16,0.28402635]
[1735673220579,0.26103041,705.07,704.16,0.28402635]
[1735673221180,1.06274161,705.07,704.16,0.28402635]
[1735673222180,1.06274161,705.09,704.16,0.28402635]
[1735673222381,0.26103004,705.08,704.16,0.28402635]
[1735673222983,0.26102858,705.07,704.16,0.28402635]
[1735673223179,1.06274161,705.07,704.16,0.28402635]
[1735673228280,1.06274161,705.1,704.16,0.28402635]
[1735673229385,1.06274161,705.06,704.16,0.28402635]
[1735673230384,1.06274161,705.04,704.16,0.28402635]
[1735673231085,1.06274161,705.08,704.16,0.28402635]
[1735673232082,1.06274161,705.05,704.16,0.28402635]
[1735673233185,1.48174957,705.25,704.16,0.28402635]
[1735673233186,1.06274161,705.08,704.16,0.28402635]
[1735673235586,1.06274161,705.06,704.16,0.28402635]
[1735673236381,1.06274161,705.08,704.16,0.28402635]
[1735673237187,0.26103155,705.07,704.16,0.28402635]
[1735673237389,1.06274161,705.08,704.16,0.28402635]
[1735673237789,1.06274161,705.03,704.16,0.28402635]
[1735673240090,1.06274161,705.06,704.16,0.28402635]
[1735673241689,1.06274161,705.07,704.16,0.28402635]
[1735673242694,1.06274161,705.08,704.16,0.28402635]
[1735673243991,1.48169174,705.26,704.16,0.28402635]
[1735673243992,1.06274161,705.09,704.16,0.28402635]
[1735673244793,1.06274161,705.11,704.16,0.28402635]
[1735673247395,2.54443335,705.26,704.16,0.28402635]
[1735673248497,1.48169174,705.26,704.16,0.28402635]
[1735673256199,0.26099899,705.25,704.16,0.28402635]
[1735673256697,1.48169174,705.26,704.16,0.28402635]
[1735673256996,0.26100021,705.25,704.16,0.28402635]
[1735673257200,1.06274161,705.24,704.16,0.28402635]
[1735673258201,1.06274161,705.25,704.16,0.28402635]
[1735673258898,0.2610045,705.24,704.16,0.28402635]
[1735673259497,0.26101629,705.23,704.16,0.28402635]
[1735673259698,0.26101629,705.22,704.16,0.28402635]
[1735673259895,0.26101629,705.21,704.16,0.28402635]
[1735673260197,1.06274161,705.21,704.16,0.28402635]
[1735673260400,0.26101826,705.2,704.16,0.28402635]
[1735673261300,1.32375987,705.2,704.16,0.28402635]
[1735673261499,0.26101826,705.19,704.16,0.28402635]
[1735673261895,1.06274161,705.2,704.16,0.28402635]
[1735673262201,0.26101359,705.19,704.16,0.28402635]
[1735673262500,1.06274161,705.2,704.16,0.28402635]
[1735673262701,0.26101526,705.19,704.16,0.28402635]
[1735673263802,1.06274161,705.17,704.16,0.28402635]
[1735673264301,0.26100621,705.16,704.16,0.28402635]
[1735673264497,1.06274161,705.17,704.16,0.28402635]
[1735673265202,1.06274161,705.18,704.16,0.28402635]
[1735673266303,1.48169174,705.26,704.16,0.28402635]
[1735673268402,2.54443335,705.26,704.16,0.28402635]
[1735673269506,1.06274161,705.25,704.16,0.28402635]
[1735673270504,1.06274161,705.24,704.16,0.28402635]
[1735673271306,1.06274161,705.23,704.16,0.28402635]
[1735673272206,1.06274161,705.22,704.16,0.28402635]
[1735673273309,1.06274161,705.23,704.16,0.28402635]
[1735673275511,0.26100336,705.22,704.16,0.28402635]
[1735673275707,0.26100336,705.21,704.16,0.28402635]
[1735673275912,0.26100336,705.2,704.16,0.28402635]
[1735673276214,0.26100336,705.19,704.16,0.28402635]
[1735673276412,0.26100336,705.18,704.16,0.28402635]
[1735673276711,0.26100336,705.17,704.16,0.28402635]
[1735673276912,1.06274161,705.25,704.16,0.28402635]
[1735673277113,1.06274161,705.15,704.16,0.28402635]
[1735673278214,1.06274161,705.13,704.16,0.28402635]
[1735673280317,1.06274161,705.12,704.16,0.28402635]
[1735673281818,1.06274161,705.13,704.16,0.28402635]
[1735673282717,1.48169174,705.26,704.16,0.28402635]
[1735673282718,1.06274161,705.16,704.16,0.28402635]
[1735673284117,1.06274161,705.15,704.16,0.28402635]
[1735673285122,1.06274161,705.16,704.16,1.34741835]
[1735673286422,1.06274161,705.15,704.16,1.34741835]
[1735673287323,0.26100087,705.14,704.16,1.34741835]
[1735673287521,1.06274161,705.15,704.16,1.34741835]
[1735673288826,1.06274161,705.12,704.16,0.28402635]
[1735673289925,1.06274161,705.09,704.16,0.28402635]
[1735673290828,1.06274161,705.1,704.16,0.28402635]
[1735673292026,1.48169174,705.26,704.16,0.28402635]
[1735673292027,1.06274161,705.11,704.16,0.28402635]
[1735673292929,1.48169174,705.26,704.16,0.28402635]
[1735673292930,1.06274161,705.09,704.16,0.28402635]
[1735673294129,1.48169174,705.16,704.16,0.28402635]
[1735673301933,1.06274161,705.25,704.16,0.28402635]
[1735673302325,1.48180215,705.21,704.16,0.28402635]
[1735673303328,0.26100125,705.2,704.16,0.28402635]
[1735673303933,0.26100442,705.19,704.16,0.28402635]
[1735673304128,1.48180215,705.21,704.16,0.28402635]
[1735673304330,0.26100311,705.2,704.16,0.28402635]
[1735673304835,1.06274161,705.18,704.16,0.28402635]
[1735673305232,0.26100977,705.17,704.16,0.28402635]
[1735673305531,1.06274161,705.18,704.16,0.28402635]
[1735673306129,1.48180215,705.21,704.16,0.28402635]
[1735673306130,1.06274161,705.16,704.16,0.28402635]
[1735673307336,1.06274161,705.18,704.16,0.28402635]
[1735673308531,2.54454376,705.21,704.16,0.28402635]
[1735673308832,0.261019,705.2,704.16,0.28402635]
[1735673309235,0.26102147,705.19,704.16,0.28402635]
[1735673309529,2.54454376,705.21,704.16,0.28402635]
[1735673309734,1.06274161,705.17,704.16,0.28402635]
[1735673311034,1.06274161,705.18,704.16,0.28402635]
[1735673311737,1.06274161,705.2,704.16,0.28402635]
[1735673312228,0.26100885,705.19,704.16,0.28402635]
[1735673312430,1.06274161,705.2,704.16,0.28402635]
[1735673312738,1.06274161,705.18,704.16,0.28402635]
[1735673313135,0.26101445,705.17,704.16,0.28402635]
[1735673313436,1.06274161,705.16,704.16,0.28402635]
[1735673314437,1.06274161,705.17,704.16,0.28402635]
[1735673315337,1.06274161,705.19,704.16,0.28402635]
[1735673315732,0.26100837,705.18,704.16,0.28402635]
[1735673316138,1.06274161,705.18,704.16,0.28402635]
[1735673316937,1.32375291,705.17,704.16,0.28402635]
[1735673317136,1.06274161,705.17,704.16,0.28402635]
[1735673317336,0.26102086,705.16,704.16,0.28402635]
[1735673317942,0.26101087,705.15,704.16,0.28402635]
[1735673318238,0.26101087,705.14,704.16,0.28402635]
[1735673318439,1.32375248,705.13,704.16,0.28402635]
[1735673318635,0.26101087,705.12,704.16,0.28402635]
[1735673319434,1.06274161,705.09,704.16,0.28402635]
[1735673319631,0.26101087,705.08,704.16,0.28402635]
[1735673320038,1.06274161,705.09,704.16,0.28402635]
[1735673320339,0.26102699,705.08,704.16,0.28402635]
[1735673320739,1.06274161,705.07,704.16,0.28402635]
[1735673320938,0.26102699,705.06,704.16,0.28402635]
[1735673322039,1.06274161,705.0,704.16,0.28402635]
[1735673323340,1.06274161,705.01,704.16,0.28402635]
[1735673324140,1.06274161,705.03,704.16,0.28402635]
[1735673325136,1.06274161,705.05,704.16,0.28402635]
[1735673326045,0.26104244,705.04,704.16,0.28402635]
[1735673326244,1.06274161,705.06,704.16,0.28402635]
[1735673326444,0.26104576,705.05,704.16,0.28402635]
[1735673326846,1.06274161,705.05,704.16,0.28402635]
[1735673328045,1.06274161,705.07,704.16,0.28402635]
[1735673328941,0.26103365,705.06,704.16,0.28402635]
[1735673329747,1.06274161,705.07,704.16,0.28402635]
[1735673329948,0.26103669,705.06,704.16,0.28402635]
[1735673331147,1.06274161,705.07,704.16,0.28402635]
[1735673331350,1.06274161,705.06,704.16,0.28402635]
[1735673332552,1.48172854,705.24,704.16,0.28402635]
[1735673332553,1.06274161,705.08,704.16,0.28402635]
[1735673333749,1.06274161,705.19,704.16,0.28402635]
[1735673333948,0.2609952,705.18,704.16,0.28402635]
[1735673335253,1.32373681,705.18,704.16,0.28402635]
[1735673335452,0.2609952,705.17,704.16,0.28402635]
[1735673336553,1.06274161,705.18,704.16,0.28402635]
[1735673337248,1.06274161,705.2,704.16,0.28402635]
[1735673338450,0.2610006,705.19,704.16,0.28402635]
[1735673338649,1.06274161,705.22,704.16,0.28402635]
[1735673338954,0.2610006,705.21,704.16,0.28402635]
[1735673339254,0.26099717,705.2,704.16,0.28402635]
[1735673339455,1.06274161,705.22,704.16,0.28402635]
[1735673339653,1.3237339,705.21,704.16,0.28402635]
[1735673339848,0.26099229,705.2,704.16,0.28402635]
[1735673340052,0.26100594,705.19,704.16,0.28402635]
[1735673340250,0.26100594,705.18,704.16,0.28402635]
[1735673340449,1.06274161,705.21,704.16,0.28402635]
[1735673340650,0.26100446,705.2,704.16,0.28402635]
[1735673340854,1.32374607,705.2,704.16,0.28402635]
[1735673341050,0.26100446,705.19,704.16,0.28402635]
[1735673341349,0.26100469,705.18,704.16,0.28402635]
[1735673341554,1.06274161,705.2,704.16,0.28402635]
[1735673341754,0.26100505,705.19,704.16,0.28402635]
[1735673341950,1.06274161,705.2,704.16,0.28402635]
[1735673342153,0.2609993,705.19,704.16,0.28402635]
[1735673342354,1.06274161,705.2,704.16,0.28402635]
[1735673342649,1.06274161,705.21,704.16,0.28402635]
[1735673343856,1.48172854,705.24,704.16,0.28402635]
[1735673359066,1.06274161,705.28,704.16,0.28402635]
[1735673359766,1.48155507,705.34,704.16,0.28402635]
[1735673368675,2.54429668,705.34,704.16,0.28402635]
[1735673370173,0.26097221,705.33,704.16,0.28402635]
[1735673370578,0.26097407,705.32,704.16,0.28402635]
[1735673370781,1.06274161,705.21,704.16,0.28402635]
[1735673371775,1.06274161,705.22,704.16,0.28402635]
[1735673372977,1.06274161,705.28,704.16,0.28402635]
[1735673374879,1.06274161,705.29,704.16,0.28402635]
[1735673375784,1.06274161,705.3,704.16,0.28402635]
[1735673377281,0.26096949,705.29,704.16,0.28402635]
[1735673377486,1.06274161,705.3,704.16,0.28402635]
[1735673377988,1.06274161,705.25,704.16,0.28402635]
[1735673379088,1.48155507,705.34,704.16,0.28402635]
[1735673379089,1.06274161,705.24,704.16,0.28402635]
[1735673379889,1.06274161,705.27,704.16,0.28402635]
[1735673381181,1.06274161,705.28,704.16,0.28402635]
[1735673381985,1.06274161,705.25,704.16,0.28402635]
[1735673384283,1.06274161,705.26,704.16,0.28402635]
[1735673386889,1.48155507,705.34,704.16,0.28402635]
[1735673386890,1.06274161,705.25,704.16,0.28402635]
[1735673388090,1.48155507,705.34,704.16,0.28402635]
[1735673388091,1.06274161,705.24,704.16,0.28402635]
[1735673389514,1.06274161,705.2,704.19,1.063392]
[1735673390389,1.06274161,705.2,704.2,1.063392]
[1735673391292,1.32372837,705.19,704.2,1.063392]
[1735673391592,1.06274161,705.19,704.2,1.063392]
[1735673392495,1.06274161,705.14,704.16,0.28402635]
[1735673393794,2.54219705,705.34,704.16,0.28402635]
[1735673393795,1.06274161,705.1,704.16,0.28402635]
[1735673395993,1.06274161,705.11,704.16,0.28402635]
[1735673396896,1.06274161,705.12,704.16,0.28402635]
[1735673398097,1.06274161,705.26,704.16,0.28402635]
[1735673398897,1.06274161,705.24,704.16,0.28402635]
[1735673401398,1.06274161,705.27,704.16,0.28402635]
[1735673402797,1.48155507,705.34,704.16,0.28402635]
[1735673402798,1.06274161,705.28,704.16,0.28402635]
[1735673403898,1.06274161,705.27,704.16,0.28402635]
[1735673405001,1.06274161,705.26,704.16,0.28402635]
[1735673406208,1.06274161,705.23,704.16,0.28402635]
[1735673406702,0.26100402,705.22,704.16,0.28402635]
[1735673407300,1.48160763,705.25,704.16,0.28402635]
[1735673407301,1.06274161,705.13,704.16,0.28402635]
[1735673408297,1.48160763,705.25,704.16,0.28402635]
[1735673408298,1.06274161,705.15,704.16,0.28402635]
[1735673409303,1.06274161,705.18,704.16,0.28402635]
[1735673409499,0.26099419,705.17,704.16,0.28402635]
[1735673410101,1.06274161,705.16,704.16,0.28402635]
[1735673413306,0.26099485,705.15,704.16,0.28402635]
[1735673413801,1.06274161,705.16,704.16,0.28402635]
[1735673414001,0.26099439,705.15,704.16,0.28402635]
[1735673414200,1.06274161,705.16,704.16,0.28402635]
[1735673414402,1.06274161,705.14,704.16,0.28402635]
[1735673415307,1.06274161,705.13,704.16,0.28402635]
[1735673417811,1.06274161,705.15,704.16,0.28402635]
[1735673421005,1.06274161,705.25,704.16,0.28402635]
[1735673422915,1.06274161,705.3,704.17,1.063392]
[1735673424015,0.28354315,705.36,704.16,0.28402635]
[1735673424214,0.26093922,705.35,704.16,0.28402635]
[1735673425017,1.06274161,705.34,704.22,1.063392]
[1735673425314,0.26093922,705.33,704.22,1.063392]
[1735673425510,1.06274161,705.34,704.22,1.063392]
[1735673425715,1.06274161,705.34,704.16,0.28402635]
[1735673425716,1.06274161,705.34,704.21,1.063392]
[1735673426111,0.26094001,705.33,704.21,1.063392]
[1735673426314,1.06274161,705.34,704.21,1.063392]
[1735673426816,0.26092807,705.33,704.21,1.063392]
[1735673427117,0.28354315,705.36,704.21,1.063392]
[1735673427315,0.26093328,705.35,704.21,1.063392]
[1735673427515,0.28354315,705.36,704.22,0.28400215]
[1735673428717,1.06274161,705.39,704.22,0.28400215]
[1735673428913,1.06274161,705.48,704.24,1.063392]
[1735673430311,0.2609043,705.47,704.22,1.34739415]
[1735673430515,0.2609043,705.46,704.22,1.34739415]
[1735673430813,0.2609043,705.45,704.23,0.28399812]
[1735673431012,0.2609043,705.44,704.23,0.28399812]
[1735673431217,0.26093289,705.43,704.23,0.28399812]
[1735673431417,0.26093289,705.42,704.23,0.28399812]
[1735673431613,0.26093289,705.41,704.23,0.28399812]
[1735673431813,0.26093289,705.4,704.23,0.28399812]
[1735673432021,0.26093289,705.39,704.23,0.28399812]
[1735673432317,0.26093289,705.38,704.23,0.28399812]
[1735673432518,1.48111893,705.57,704.23,0.28399812]
[1735673432519,0.26093289,705.37,704.23,0.28399812]
[1735673432718,0.26093289,705.36,704.23,0.28399812]
[1735673432918,0.26092015,705.35,704.23,0.28399812]
[1735673433119,1.06274161,705.48,704.23,0.28399812]
[1735673433320,0.26092277,705.47,704.23,0.28399812]
[1735673433721,1.06274161,705.49,704.23,0.28399812]
[1735673433921,0.2609122,705.48,704.23,0.28399812]
[1735673435320,0.2609122,705.47,704.23,0.28399812]
[1735673435622,0.2609122,705.46,704.23,0.28399812]
[1735673435821,0.2609122,705.45,704.23,0.28399812]
[1735673436018,0.2609122,705.44,704.23,0.28399812]
[1735673436322,2.54386054,705.57,704.23,0.28399812]
[1735673436523,0.26089811,705.56,704.23,0.28399812]
[1735673437117,0.2609045,705.55,704.23,0.28399812]
[1735673437324,0.2609045,705.54,704.23,0.28399812]
[1735673437624,0.2609045,705.53,704.23,0.28399812]
[1735673437818,0.2609045,705.52,704.23,0.28399812]
[1735673438018,0.2609045,705.51,704.23,0.28399812]
[1735673438217,0.2609045,705.5,704.23,0.28399812]
[1735673438417,0.2609045,705.49,704.23,0.28399812]
[1735673438619,0.2609045,705.48,704.23,0.28399812]
[1735673438820,0.2609045,705.47,704.23,0.28399812]
[1735673439023,0.26094094,705.46,704.23,0.28399812]
[1735673439224,0.26094094,705.45,704.23,0.28399812]
[1735673439421,0.26094094,705.44,704.23,0.28399812]
[1735673443326,0.26093763,705.43,704.23,0.28399812]
[1735673443526,0.26093763,705.42,704.23,0.28399812]
[1735673443723,0.26093763,705.41,704.23,0.28399812]
[1735673443923,0.26093763,705.4,704.23,0.28399812]
[1735673444131,0.26093763,705.39,704.23,0.28399812]
[1735673444428,0.26093763,705.38,704.23,0.28399812]
[1735673444628,0.26093763,705.37,704.23,0.28399812]
[1735673444824,0.26093763,705.36,704.23,0.28399812]
[1735673445028,0.26093763,705.35,704.23,0.28399812]
[1735673445230,0.26093763,705.34,704.23,0.28399812]
[1735673445532,0.26093763,705.33,704.23,0.28399812]
[1735673445729,0.26093763,705.32,704.23,0.28399812]
[1735673445923,0.26093763,705.31,704.23,0.28399812]
[1735673446123,0.26093763,705.3,704.23,0.28399812]
[1735673446429,0.26093763,705.29,704.23,0.28399812]
[1735673446624,0.26093763,705.28,704.23,0.28399812]
[1735673446823,0.26093763,705.27,704.23,0.28399812]
[1735673447024,0.26097238,705.26,704.23,0.28399812]
[1735673447227,0.26097238,705.25,704.23,0.28399812]
[1735673447429,0.26097238,705.24,704.23,0.28399812]
[1735673447629,0.26097238,705.23,704.23,0.28399812]
[1735673447831,1.06274161,705.37,704.23,0.28399812]
[1735673448129,0.2609692,705.36,704.23,0.28399812]
[1735673449732,1.74240588,705.35,704.23,0.28399812]
[1735673450031,0.26096119,705.34,704.23,0.28399812]
[1735673452530,0.26095433,705.33,704.23,0.28399812]
[1735673452732,0.26095433,705.32,704.23,0.28399812]
[1735673452931,0.26095433,705.31,704.23,0.28399812]
[1735673453133,0.26095433,705.3,704.23,0.28399812]
[1735673453431,0.26095433,705.29,704.23,0.28399812]
[1735673453633,0.26095433,705.28,704.23,0.28399812]
[1735673453932,0.26095433,705.27,704.23,0.28399812]
[1735673454128,0.26095433,705.26,704.23,0.28399812]
[1735673454332,0.26095433,705.25,704.23,0.28399812]
[1735673454630,0.26095433,705.24,704.23,0.28399812]
[1735673454831,1.06274161,705.34,704.23,0.28399812]
[1735673455032,1.48144469,705.35,704.23,0.28399812]
[1735673455033,1.06274161,705.3,704.23,0.28399812]
[1735673455234,0.26098925,705.29,704.23,0.28399812]
[1735673456033,1.32373086,705.29,704.23,0.28399812]
[1735673456232,0.26098925,705.28,704.23,0.28399812]
[1735673456932,1.06274161,705.29,704.23,0.28399812]
[1735673457131,1.48144469,705.35,704.23,0.28399812]
[1735673457332,0.26096074,705.34,704.23,0.28399812]
[1735673458633,1.48144469,705.35,704.23,0.28399812]
[1735673458834,1.06274161,705.39,704.23,0.28399812]
[1735673459428,1.06274161,705.43,704.23,0.28399812]
[1735673460937,1.48138163,705.45,704.23,0.28399812]
[1735673470639,0.26092162,705.44,704.23,0.28399812]
[1735673472344,1.06274161,705.42,704.23,0.28399812]
[1735673472545,0.26092162,705.41,704.23,0.28399812]
[1735673473352,1.06274161,705.31,704.23,0.28399812]
[1735673473644,0.26097522,705.3,704.23,0.28399812]
[1735673474043,1.74246196,705.3,704.23,0.28399812]
[1735673474244,0.26097522,705.29,704.23,0.28399812]
[1735673475848,1.48148674,705.3,704.23,0.28399812]
[1735673476050,0.26097746,705.29,704.23,0.28399812]
[1735673476548,1.48148674,705.3,704.23,0.28399812]
[1735673476746,0.26096794,705.29,704.23,0.28399812]
[1735673478662,0.26097732,705.28,704.23,0.28399812]
[1735673478956,0.26097732,705.27,704.23,0.28399812]
[1735673479159,0.26097732,705.26,704.23,0.28399812]
[1735673479363,0.26097732,705.25,704.23,0.28399812]
[1735673479562,0.26097732,705.24,704.23,0.28399812]
[1735673479759,0.26097732,705.23,704.23,0.28399812]
[1735673479954,0.26097732,705.22,704.23,0.28399812]
[1735673480158,0.26097732,705.21,704.23,0.28399812]
[1735673480359,0.26097732,705.2,704.23,0.28399812]
[1735673480554,1.48148674,705.3,704.23,0.28399812]
[1735673480761,0.26097248,705.29,704.23,0.28399812]
[1735673481155,0.26097618,705.28,704.23,0.28399812]
[1735673481357,0.26097618,705.27,704.23,0.28399812]
[1735673481557,0.26097618,705.26,704.23,0.28399812]
[1735673481854,0.26097618,705.25,704.23,0.28399812]
[1735673482059,0.26097618,705.24,704.23,0.28399812]
[1735673482260,0.26097618,705.23,704.23,0.28399812]
[1735673482457,1.48148674,705.3,704.23,0.28399812]
[1735673482663,0.26096716,705.29,704.23,0.28399812]
[1735673483862,0.26097981,705.28,704.23,0.28399812]
[1735673484063,0.26097981,705.27,704.23,0.28399812]
[1735673484263,0.26097981,705.26,704.23,0.28399812]
[1735673484463,1.48148674,705.3,704.23,0.28399812]
[1735673484664,0.26097124,705.29,704.23,0.28399812]
[1735673487166,1.48148674,705.3,704.23,0.28399812]
[1735673487366,0.26096996,705.29,704.23,0.28399812]
[1735673487866,1.48148674,705.3,704.23,0.28399812]
[1735673488066,0.26100722,705.29,704.23,0.28399812]
[1735673488762,1.48148674,705.3,704.23,0.28399812]
[1735673489067,0.26103247,705.29,704.23,0.28399812]
[1735673489262,0.26103247,705.29,703.8,1.063392]
[1735673489263,0.2610512,705.28,703.8,1.063392]
[1735673489470,0.2610512,705.27,703.68,1.063392]
[1735673489766,0.2610512,705.26,703.81,0.2841676]
[1735673489966,0.2610512,705.25,703.81,0.2841676]
[1735673490167,0.2610512,705.24,703.81,0.2841676]
[1735673490366,0.2610512,705.23,703.81,0.2841676]
[1735673490568,0.2610512,705.22,703.81,0.2841676]
[1735673490770,0.2610512,705.21,703.81,0.2841676]
[1735673490967,0.2610512,705.2,703.81,0.2841676]
[1735673491166,1.48199146,705.21,703.81,0.2841676]
[1735673491361,0.26103912,705.2,703.81,0.2841676]
[1735673491762,1.48199146,705.21,703.81,0.2841676]
[1735673496578,0.26103616,705.2,703.81,0.2841676]
[1735673499877,0.26105393,705.19,703.81,0.2841676]
[1735673500174,0.26105393,705.18,703.81,0.2841676]
[1735673500370,0.26105393,705.17,703.81,0.2841676]
[1735673500573,0.26105352,705.16,703.81,0.2841676]
[1735673500871,1.48199146,705.21,703.81,0.2841676]
[1735673500872,0.26105352,705.15,703.81,0.2841676]
[1735673501069,0.26105352,705.14,703.81,0.2841676]
[1735673501375,1.06274161,705.25,703.81,0.2841676]
[1735673501576,0.26104916,705.24,703.81,0.2841676]
[1735673501777,1.48195465,705.13,703.81,0.2841676]
[1735673502077,1.48199672,705.12,703.81,0.2841676]
[1735673507376,0.26107209,705.11,703.81,0.2841676]
[1735673508372,1.48199672,705.12,703.81,0.2841676]
[1735673508574,0.26110801,705.11,703.81,0.2841676]
[1735673508976,1.06274161,705.06,703.81,0.2841676]
[1735673509278,0.26110801,705.05,703.81,0.2841676]
[1735673510078,1.06274161,705.09,703.81,0.2841676]
[1735673510079,0.26110801,705.04,703.81,0.2841676]
[1735673510278,0.26110801,705.03,703.81,0.2841676]
[1735673510575,0.26110823,705.02,703.81,0.2841676]
[1735673510780,0.26110823,705.01,703.81,0.2841676]
[1735673511079,0.26110823,705.0,703.81,0.2841676]
[1735673511378,1.48199672,705.12,703.81,0.2841676]
[1735673511379,0.26110823,704.99,703.81,0.2841676]
[1735673511579,0.26110823,704.98,703.81,0.2841676]
[1735673511880,0.26110823,704.97,703.81,0.2841676]
[1735673512082,0.26110823,704.96,703.81,0.2841676]
[1735673512281,0.26110823,704.95,703.81,0.2841676]
[1735673512482,0.26110823,704.94,703.81,0.2841676]
[1735673512680,1.48216504,704.98,703.81,0.2841676]
[1735673512681,0.26110823,704.93,703.81,0.2841676]
[1735673512880,1.48216504,704.98,703.81,0.2841676]
[1735673513180,0.26109864,704.97,703.81,0.2841676]
[1735673515680,0.26112045,704.96,703.81,0.2841676]
[1735673515881,0.26112045,704.95,703.81,0.2841676]
[1735673516084,0.26112045,704.94,703.81,0.2841676]
[1735673516385,0.26111493,704.93,703.81,0.2841676]
[1735673516584,0.26111493,704.92,703.81,0.2841676]
[1735673516883,0.26111493,704.91,703.81,0.2841676]
[1735673517082,0.26111493,704.9,703.81,0.2841676]
[1735673517282,0.26111493,704.89,703.81,0.2841676]
[1735673517478,0.26111493,704.88,703.81,0.2841676]
[1735673517681,0.26111423,704.87,703.81,0.2841676]
[1735673517881,0.26111423,704.86,703.81,0.2841676]
[1735673518084,0.26111423,704.85,703.81,0.2841676]
[1735673518379,1.48216504,704.98,703.81,0.2841676]
[1735673518584,0.26110259,704.97,703.81,0.2841676]
[1735673518783,1.48216504,704.98,703.81,0.2841676]
[1735673522479,1.06274161,705.39,703.81,0.2841676]
[1735673522683,1.48234392,705.09,703.81,0.2841676]
[1735673522882,0.28353511,705.38,703.81,0.2841676]
[1735673523081,1.48227026,705.09,703.81,0.2841676]
[1735673523278,0.28353511,705.38,703.81,0.2841676]
[1735673524579,1.48202302,705.37,703.81,0.2841676]
[1735673524781,0.28354315,705.36,703.81,0.2841676]
[1735673524987,0.26104829,705.35,703.81,0.2841676]
[1735673525285,0.54459948,705.34,703.81,0.2841676]
[1735673525484,0.26104829,705.33,703.81,0.2841676]
[1735673525885,0.28355119,705.34,703.81,0.2841676]
[1735673526088,1.06274161,705.15,703.84,1.063392]
[1735673527187,1.06274161,705.27,703.89,1.063392]
[1735673527485,0.26100247,705.26,703.89,1.063392]
[1735673528186,1.06274161,705.27,703.89,1.063392]
[1735673528388,0.26101348,705.26,703.91,1.063392]
[1735673528587,0.26101348,705.25,703.91,1.063392]
[1735673528882,0.26101348,705.24,703.91,1.063392]
[1735673529087,1.06274161,705.31,703.91,1.063392]
[1735673529088,0.26101348,705.23,703.91,1.063392]
[1735673529287,0.26101348,705.22,703.91,1.063392]
[1735673529489,0.26101348,705.21,703.91,1.063392]
[1735673529686,0.26101348,705.2,703.88,1.063392]
[1735673529885,0.26101348,705.19,703.89,0.2841353]
[1735673530086,0.26101348,705.18,703.89,0.2841353]
[1735673530287,0.26101348,705.17,703.89,0.2841353]
[1735673530490,0.26101348,705.16,703.89,0.2841353]
[1735673530788,1.06274161,705.3,703.89,0.2841353]
[1735673530989,0.26100189,705.29,703.89,0.2841353]
[1735673531489,1.06274161,705.28,703.89,0.2841353]
[1735673531689,0.26100189,705.27,703.89,0.2841353]
[1735673532589,0.26100189,705.27,703.89,1.3475273]
[1735673532891,0.2610137,705.26,703.89,1.3475273]
[1735673533081,0.2610137,705.25,703.89,1.3475273]
[1735673533286,0.2610137,705.24,703.89,1.3475273]
[1735673533485,0.2610137,705.23,703.89,1.3475273]
[1735673533690,0.26100583,705.22,703.89,0.2841353]
[1735673533885,1.06274161,705.29,703.89,0.2841353]
[1735673534090,0.26100609,705.28,703.89,0.2841353]
[1735673534791,0.26100609,705.27,703.89,0.2841353]
[1735673534991,0.26100609,705.26,703.89,0.2841353]
[1735673536193,1.48163917,705.27,703.89,0.2841353]
[1735673536393,0.26104773,705.26,703.89,0.2841353]
[1735673537492,0.28358738,705.25,703.89,0.2841353]
[1735673537692,0.26104773,705.24,703.89,0.2841353]
[1735673537893,1.06274161,705.22,703.89,0.2841353]
[1735673538092,0.26104773,705.21,703.89,0.2841353]
[1735673538690,1.06274161,705.22,703.89,0.2841353]
[1735673538886,0.26108017,705.21,703.89,0.2841353]
[1735673539191,1.32382178,705.21,703.89,0.2841353]
[1735673539492,0.26108017,705.2,703.89,0.2841353]
[1735673540393,1.06274161,705.19,703.89,0.2841353]
[1735673540593,0.26108017,705.18,703.89,0.2841353]
[1735673541495,1.06274161,705.18,703.89,0.2841353]
[1735673541695,0.261082,705.17,703.89,0.2841353]
[1735673542497,1.34632899,705.25,703.89,0.2841353]
[1735673542696,0.26106925,705.24,703.89,0.2841353]